fUSD/lending_fUSD_20260406
["ID","MTS","AMOUNT","RATE_DAILY","PERIOD"]
[419879959,1775461838871,-2000.0,0.000127,4]
[419879960,1775461838881,-500.0,0.00012774,2]
[419879961,1775461838892,-161.15,0.00012782,2]
[419879962,1775461838902,-200.0,0.00012785,2]
[419879963,1775461838912,-1337.30371513,0.00012785,2]
[419879964,1775461838923,-10994.48681168,0.00012789,2]
[419879965,1775461838933,-151.0,0.0001279,2]
[419879966,1775461838943,-151.0,0.0001279,2]
[419879967,1775461838953,-821.04,0.00012792,2]
[419879968,1775461838963,-9999.99,0.00012793,2]
[419879969,1775461838972,-4227.25,0.00012793,2]
[419879970,1775461838983,-150.99,0.00012793,2]
[419879971,1775461838994,-2323.89,0.00012793,2]
[419879972,1775461839004,-160.1,0.000128,2]
[419879973,1775461839014,-4000.0,0.000128,4]
[419879974,1775461839024,-6000.0,0.000129,4]
[419879975,1775461839035,-1990.29367805,0.000129,2]
[419879976,1775461839045,-250.0,0.00013,2]
[419879977,1775461839055,-1000.0,0.00013021,2]
[419879978,1775461839065,-1000.0,0.00013021,2]
[419879979,1775461839076,-1000.0,0.00013021,2]
[419879980,1775461839086,-1000.0,0.00013021,2]
[419879981,1775461839097,-152.0,0.00013034,3]
[419879982,1775461839107,-500.0,0.00013048,2]
[419879983,1775461839117,-18060.03789133,0.00013049,2]
[419879984,1775461839127,-821.04,0.00013066,2]
[419879985,1775461839137,-152.0,0.00013138,4]
[419879986,1775461839147,-10994.48681168,0.00013178,2]
[419879987,1775461839159,-152.0,0.00013241,5]
[419879988,1775461839169,-11722.1695,0.00013297,2]
[419879989,1775461839179,-5491.6129,0.00013297,2]
[419879990,1775461839189,-1000.0,0.00013297,2]
[419879991,1775461839200,-250.0,0.00013304,2]
[419879992,1775461839210,-500.0,0.00013322,2]
[419879993,1775461839220,-200.0,0.00013333,2]
[419879994,1775461839239,-629.47078978,0.00013333,2]
[419879995,1775461839255,-821.04,0.0001334,2]
[419879996,1775461839266,-152.0,0.00013345,6]
[419879997,1775461839277,-1990.29367805,0.000134,2]
[419879998,1775461839287,-5144.65126828,0.00013405,2]
[419879999,1775461839298,-250.0,0.00013405,2]
[419880000,1775461839308,-250.0,0.00013405,2]
[419880001,1775461839319,-18060.03789133,0.00013406,2]
[419880002,1775461839329,-152.0,0.00013449,7]
[419880003,1775461839339,-574.29247521,0.000135,2]
[419880004,1775461839350,-152.0,0.00013553,8]
[419880006,1775461839360,-10994.48681168,0.00013567,2]
[419880008,1775461839371,-1011.33728453,0.00013568,2]
[419880010,1775461839381,-1044.24672784,0.00013568,2]
[419880011,1775461839392,-204.26825693,0.00013568,2]
[419880012,1775461839403,-1500.0,0.00013568,2]
[419880013,1775461839413,-500.0,0.00013596,2]
[419880014,1775461839424,-420.0,0.00013606,2]
[419880015,1775461839435,-420.0,0.00013606,2]
[419880016,1775461839446,-163.26,0.00013607,2]
[419880017,1775461839456,-821.04,0.00013614,2]
[419880018,1775461839467,-150.0,0.00013627,2]
[419880019,1775461839478,-267.591609,0.00013628,2]
[419880020,1775461839488,-1680.0,0.00013639,2]
[419880021,1775461839500,-152.0,0.00013657,9]
[419880022,1775461839510,-162.28,0.0001367,2]
[419880023,1775461839520,-500.0,0.00013698,2]
[419880024,1775461839531,-500.0,0.00013698,2]
[419880025,1775461839541,-500.0,0.00013698,2]
[419880026,1775461839551,-500.0,0.00013698,2]
[419880027,1775461839561,-500.0,0.00013698,2]
[419880028,1775461839572,-500.0,0.00013698,2]
[419880029,1775461839583,-500.0,0.00013698,2]
[419880030,1775461839594,-500.0,0.00013698,2]
[419880031,1775461839604,-500.0,0.00013698,2]
[419880032,1775461839614,-500.0,0.00013698,2]
[419880033,1775461839625,-500.0,0.00013698,2]
[419880034,1775461839635,-500.0,0.00013698,2]
[419880035,1775461839645,-500.0,0.00013698,2]
[419880036,1775461839655,-500.0,0.00013698,2]
[419880037,1775461839665,-500.0,0.00013698,2]
[419880038,1775461839677,-500.0,0.00013698,2]
[419880039,1775461839687,-500.0,0.00013698,2]
[419880040,1775461839697,-500.0,0.00013698,2]
[419880041,1775461839707,-500.0,0.00013698,2]
[419880042,1775461839718,-500.0,0.00013698,2]
[419880043,1775461839728,-500.0,0.00013698,2]
[419880044,1775461839745,-500.0,0.00013698,2]
[419880046,1775461839756,-500.0,0.00013698,2]
[419880047,1775461839766,-500.0,0.00013698,2]
[419880048,1775461839776,-500.0,0.00013698,2]
[419880049,1775461839787,-500.0,0.00013698,2]
[419880050,1775461839797,-500.0,0.00013698,2]
[419880052,1775461839808,-500.0,0.00013698,2]
[419880054,1775461839818,-500.0,0.00013698,2]
[419880056,1775461839828,-500.0,0.00013698,2]
[419880058,1775461839839,-500.0,0.00013698,2]
[419880060,1775461839849,-500.0,0.00013698,2]
[419880063,1775461839860,-500.0,0.00013698,2]
[419880065,1775461839870,-500.0,0.00013698,2]
[419880066,1775461839880,-500.0,0.00013698,2]
[419880067,1775461839891,-500.0,0.00013698,2]
[419880068,1775461839901,-502.76097898,0.00013698,2]
[419880069,1775461839912,-500.0,0.00013698,2]
[419880070,1775461839922,-507.01970036,0.00013698,2]
[419880071,1775461839932,-500.0,0.00013698,2]
[419880072,1775461839943,-500.0,0.00013698,2]
[419880073,1775461839954,-500.0,0.00013698,2]
[419880074,1775461839964,-500.0,0.00013698,2]
[419880075,1775461839974,-500.0,0.00013698,2]
[419880076,1775461839985,-500.0,0.00013698,2]
[419880077,1775461839995,-500.0,0.00013698,2]
[419880078,1775461840006,-500.0,0.00013698,2]
[419880079,1775461840016,-500.0,0.00013698,2]
[419880080,1775461840027,-500.0,0.00013698,2]
[419880081,1775461840037,-500.0,0.00013698,2]
[419880082,1775461840047,-500.0,0.00013698,2]
[419880083,1775461840057,-500.0,0.00013698,2]
[419880084,1775461840068,-500.0,0.00013698,2]
[419880085,1775461840078,-500.0,0.00013698,2]
[419880086,1775461840088,-500.0,0.00013698,2]
[419880087,1775461840099,-500.0,0.00013698,2]
[419880088,1775461840110,-500.0,0.00013698,2]
[419880089,1775461840121,-500.0,0.00013698,2]
[419880090,1775461840131,-500.0,0.00013698,2]
[419880091,1775461840141,-500.0,0.00013698,2]
[419880092,1775461840151,-500.0,0.00013698,2]
[419880093,1775461840161,-500.0,0.00013698,2]
[419880094,1775461840172,-500.0,0.00013698,2]
[419880095,1775461840182,-500.0,0.00013698,2]
[419880096,1775461840192,-500.0,0.00013698,2]
[419880097,1775461840202,-500.0,0.00013698,2]
[419880098,1775461840213,-500.0,0.00013698,2]
[419880099,1775461840224,-500.0,0.00013698,2]
[419880100,1775461840234,-500.0,0.00013698,2]
[419880101,1775461840244,-500.0,0.00013698,2]
[419880102,1775461840255,-500.0,0.00013698,2]
[419880103,1775461840265,-500.0,0.00013698,2]
[419880104,1775461840276,-500.0,0.00013698,2]
[419880105,1775461840286,-500.0,0.00013698,2]
[419880106,1775461840296,-500.0,0.00013698,2]
[419880107,1775461840306,-500.0,0.00013698,2]
[419880108,1775461840316,-500.0,0.00013698,2]
[419880109,1775461840328,-500.0,0.00013698,2]
[419880110,1775461840338,-500.0,0.00013698,2]
[419880111,1775461840349,-500.0,0.00013698,2]
[419880112,1775461840359,-500.0,0.00013698,2]
[419880113,1775461840369,-500.0,0.00013698,2]
[419880114,1775461840379,-500.0,0.00013698,2]
[419880115,1775461840389,-500.0,0.00013698,2]
[419880116,1775461840400,-500.0,0.00013698,2]
[419880117,1775461840411,-500.0,0.00013698,2]
[419880118,1775461840420,-500.0,0.00013698,2]
[419880119,1775461840431,-500.0,0.00013698,2]
[419880120,1775461840441,-500.0,0.00013698,2]
[419880121,1775461840451,-500.0,0.00013698,2]
[419880122,1775461840461,-500.0,0.00013698,2]
[419880123,1775461840471,-500.0,0.00013698,2]
[419880124,1775461840481,-500.0,0.00013698,2]
[419880125,1775461840491,-500.0,0.00013698,2]
[419880126,1775461840502,-500.0,0.00013698,2]
[419880127,1775461840513,-500.0,0.00013698,2]
[419880128,1775461840523,-500.0,0.00013698,2]
[419880129,1775461840533,-500.0,0.00013698,2]
[419880130,1775461840544,-500.0,0.00013698,2]
[419880131,1775461840554,-500.0,0.00013698,2]
[419880132,1775461840564,-500.0,0.00013698,2]
[419880133,1775461840575,-500.0,0.00013698,2]
[419880134,1775461840585,-500.0,0.00013698,2]
[419880135,1775461840595,-500.0,0.00013698,2]
[419880136,1775461840605,-500.0,0.00013698,2]
[419880137,1775461840616,-500.0,0.00013698,2]
[419880138,1775461840625,-500.0,0.00013698,2]
[419880139,1775461840635,-500.0,0.00013698,2]
[419880140,1775461840645,-500.0,0.00013698,2]
[419880141,1775461840656,-500.0,0.00013698,2]
[419880142,1775461840666,-500.0,0.00013698,2]
[419880143,1775461840678,-500.0,0.00013698,2]
[419880144,1775461840688,-500.0,0.00013698,2]
[419880145,1775461840698,-500.0,0.00013698,2]
[419880146,1775461841194,-500.0,0.00013698,2]
[419880147,1775461841218,-500.0,0.00013698,2]
[419880148,1775461841228,-500.0,0.00013698,2]
[419880149,1775461841238,-500.0,0.00013698,2]
[419880150,1775461841247,-508.61892667,0.00013698,2]
[419880151,1775461841257,-500.0,0.00013698,2]
[419880152,1775461841267,-500.0,0.00013698,2]
[419880153,1775461841278,-500.0,0.00013698,2]
[419880154,1775461841288,-500.0,0.00013698,2]
[419880155,1775461841298,-500.0,0.00013698,2]
[419880156,1775461841308,-500.0,0.00013698,2]
[419880157,1775461841318,-500.0,0.00013698,2]
[419880158,1775461841328,-500.0,0.00013698,2]
[419880159,1775461841337,-500.0,0.00013698,2]
[419880160,1775461841347,-500.0,0.00013698,2]
[419880161,1775461841357,-500.0,0.00013698,2]
[419880162,1775461841366,-500.0,0.00013698,2]
[419880163,1775461841376,-500.0,0.00013698,2]
[419880164,1775461841386,-500.0,0.00013698,2]
[419880165,1775461841396,-500.0,0.00013698,2]
[419880166,1775461841406,-500.0,0.00013698,2]
[419880167,1775461841417,-500.0,0.00013698,2]
[419880168,1775461841426,-500.0,0.00013698,2]
[419880169,1775461841436,-500.0,0.00013698,2]
[419880170,1775461841446,-500.0,0.00013698,2]
[419880171,1775461841455,-500.0,0.00013698,2]
[419880172,1775461841465,-150.0,0.00013699,2]
[419880173,1775461841474,-150.0,0.00013699,2]
[419880174,1775461841484,-151.23,0.00013699,2]
[419880175,1775461841493,-347.65580151,0.00013742,2]
[419880176,1775461841503,-152.0,0.0001376,10]
[419880177,1775461841513,-18060.03789133,0.00013762,2]
[419880178,1775461841522,-167.5485,0.000138,2]
[419880179,1775461841532,-3000.0,0.00013808,2]
[419880180,1775461841542,-1500.0,0.0001385,2]
[419880181,1775461841552,-152.0,0.00013864,11]
[419880182,1775461841562,-150.0,0.00013866,2]
[419880183,1775461841572,-500.0,0.0001387,2]
[419880184,1775461841582,-204.31990126,0.00013881,2]
[419880185,1775461841592,-821.04,0.00013888,2]
[419880186,1775461841602,-1990.29367805,0.000139,2]
[419880187,1775461841612,-10994.48681168,0.00013956,2]
[419880188,1775461841623,-152.0,0.00013968,12]
[419880189,1775461841633,-150.0,0.00013973,2]
[419880190,1775461841643,-150.0,0.00013973,2]
[419880191,1775461841653,-855.85192254,0.00014006,2]
[419880192,1775461841662,-152.0,0.00014072,13]
[419880193,1775461841672,-1500.0,0.00014082,2]
[419880194,1775461841682,-185.52,0.00014115,2]
[419880195,1775461841692,-1000.0,0.00014116,2]
[419880196,1775461841703,-18060.03789133,0.00014118,2]
[419880197,1775461841713,-634.23081963,0.00014144,2]
[419880198,1775461841724,-821.04,0.00014162,2]
[419880199,1775461841735,-160.0,0.00014166,2]
[419880200,1775461841746,-160.0,0.00014166,2]
[419880201,1775461841756,-152.0,0.00014176,14]
[419880202,1775461841766,-273.589064,0.0001421,7]
[419880203,1775461841775,-249.087436,0.0001421,7]
[419880204,1775461841785,-500.0,0.00014214,2]
[419880205,1775461841795,-500.0,0.00014214,2]
[419880206,1775461841805,-171.831021,0.00014221,7]
[419880207,1775461841815,-208.123787,0.00014221,7]
[419880208,1775461841824,-429.963565,0.00014221,2]
[419880209,1775461841834,-162.28,0.00014234,2]
[419880210,1775461841844,-150.0,0.00014247,2]
[419880211,1775461841854,-150.0,0.00014247,2]
[419880212,1775461841864,-152.0,0.0001428,15]
[419880213,1775461841874,-10994.48681168,0.00014344,2]
[419880214,1775461841884,-152.0,0.00014383,16]
[419880215,1775461841894,-151.23,0.00014384,2]
[419880216,1775461841904,-1573.0,0.000144,2]
[419880217,1775461841914,-150.0,0.000144,2]
[419880218,1775461841925,-154.4710574,0.000144,2]
[419880219,1775461841970,-150.0,0.000144,2]
[419880220,1775461841980,-150.0,0.000144,2]
[419880221,1775461841995,-150.0,0.000144,2]
[419880222,1775461842005,-150.0,0.000144,2]
[419880223,1775461842015,-1990.29367805,0.000144,2]
[419880224,1775461842025,-168.608693,0.00014426,2]
[419880225,1775461842034,-160.0,0.00014426,7]
[419880226,1775461842043,-178.315209,0.00014426,7]
[419880227,1775461842053,-196.630418,0.00014426,7]
[419880228,1775461842062,-160.0,0.00014426,7]
[419880229,1775461842071,-215.977512,0.00014426,7]
[419880230,1775461842081,-271.955025,0.00014426,7]
[419880231,1775461842091,-821.04,0.00014436,2]
[419880232,1775461842100,-18060.03789133,0.00014475,2]
[419880233,1775461842110,-152.0,0.00014487,17]
[419880234,1775461842119,-861.43871281,0.000145,2]
[419880235,1775461842129,-200.014627,0.00014502,2]
[419880236,1775461842139,-1347.0,0.00014511,2]
[419880237,1775461842148,-1050.137,0.00014511,2]
[419880238,1775461842158,-622.0,0.00014511,2]
[419880239,1775461842167,-1263.0,0.00014511,2]
[419880240,1775461842177,-926.573,0.00014511,2]
[419880241,1775461842187,-3771.0,0.00014511,2]
[419880242,1775461842196,-415.0,0.00014511,2]
[419880243,1775461842206,-152.0,0.00014591,18]
[419880244,1775461842215,-152.0,0.00014695,19]
[419880245,1775461842226,-821.1,0.0001471,2]
[419880246,1775461842236,-2811.0,0.0001472,2]
[419880247,1775461842247,-829.34762344,0.00014733,2]
[419880248,1775461842279,-1997.20121288,0.00014733,2]
[419880249,1775461842302,-2936.5044634,0.00014733,2]
[419880250,1775461842318,-338.20360002,0.00014733,2]
[419880251,1775461842331,-4893.22991194,0.00014733,2]
[419880252,1775461842340,-162.28,0.00014798,2]
[419880253,1775461842350,-152.0,0.00014799,20]
[419880254,1775461842360,-18060.03789133,0.00014831,2]
[419880255,1775461842369,-1990.29367805,0.000149,2]
[419880256,1775461842379,-152.0,0.00014902,21]
[419880257,1775461842388,-485.0,0.0001493,2]
[419880258,1775461842398,-587.0,0.0001493,2]
[419880259,1775461842407,-195.437984,0.00014932,2]
[419880260,1775461842417,-2000.0,0.00015,2]
[419880261,1775461842427,-300.0,0.00015,2]
[419880262,1775461842438,-2351.0,0.00015003,2]
[419880263,1775461842448,-152.0,0.00015006,22]
[419880264,1775461842458,-500.0,0.00015032,2]
[419880265,1775461842467,-500.0,0.00015032,2]
[419880266,1775461842476,-500.0,0.00015032,2]
[419880268,1775461842487,-500.0,0.00015032,2]
[419880269,1775461842496,-607.43953795,0.00015032,2]
[419880270,1775461842506,-456.32574047,0.00015032,2]
[419880274,1775461842696,-43.67425953,0.00015032,2]
[419880275,1775461842705,-500.0,0.00015032,2]
[419880276,1775461842716,-243.99574047,0.00015032,2]
[419880277,1775461842760,-256.00425953,0.00015032,2]
[419880278,1775461842770,-500.0,0.00015032,2]
[419880279,1775461842780,-500.0,0.00015032,2]
[419880280,1775461842790,-2811.0,0.0001504,2]
[419880281,1775461842799,-162.0,0.0001504,2]
[419880282,1775461842808,-535.43817894,0.00015058,2]
[419880283,1775461842818,-2000.0,0.00015058,2]
[419880284,1775461842828,-151.23,0.00015068,2]
[419880285,1775461842838,-187.1501,0.000151,2]
[419880286,1775461842848,-152.0,0.0001511,23]
[419880287,1775461842857,-163.26,0.00015119,2]
[419880288,1775461842867,-10994.48681168,0.00015122,2]
[419880289,1775461842876,-243.157103,0.00015147,7]
[419880290,1775461842886,-294.51479,0.00015147,7]
[419880291,1775461842895,-3000.0,0.00015178,2]
[419880292,1775461842905,-18060.03789133,0.00015187,2]
[419880293,1775461842915,-578.20924308,0.00015199,2]
[419880294,1775461842925,-500.0,0.00015199,2]
[419880295,1775461842935,-500.0,0.00015199,2]
[419880296,1775461842944,-200.0,0.00015199,2]
[419880297,1775461842954,-1377.42282659,0.00015199,2]
[419880298,1775461842963,-500.0,0.00015199,2]
[419880299,1775461842973,-695.39793187,0.00015199,2]
[419880300,1775461842982,-500.0,0.00015199,2]
[419880301,1775461842992,-500.0,0.00015199,2]
[419880302,1775461843002,-500.0,0.00015199,2]
[419880303,1775461843012,-500.0,0.00015199,2]
[419880304,1775461843022,-500.0,0.00015199,2]
[419880305,1775461843032,-500.0,0.00015199,2]
[419880306,1775461843043,-500.0,0.00015199,2]
[419880307,1775461843053,-500.0,0.00015199,2]
[419880308,1775461843063,-500.0,0.00015199,2]
[419880309,1775461843073,-500.0,0.00015199,2]
[419880310,1775461843084,-422.67905006,0.00015199,2]
[419880311,1775461843094,-174.61919141,0.00015199,2]
[419880312,1775461843105,-152.0,0.00015214,24]
[419880313,1775461843115,-500.0,0.00015254,2]
[419880314,1775461843125,-500.0,0.00015309,2]
[419880315,1775461843136,-152.0,0.00015318,25]
[419880316,1775461843147,-158.46825389,0.00015358,2]
[419880317,1775461843157,-162.28,0.00015362,2]
[419880318,1775461843168,-500.0,0.00015364,2]
[419880319,1775461843178,-8000.0,0.000154,5]
[419880320,1775461843188,-1990.29367805,0.000154,2]
[419880321,1775461843199,-500.0,0.00015419,2]
[419880322,1775461843209,-152.0,0.00015421,26]
[419880323,1775461843219,-1500.0,0.00015452,2]
[419880324,1775461843230,-350.0,0.0001546,2]
[419880325,1775461843241,-2811.0,0.00015474,2]
[419880326,1775461843253,-562.85781606,0.00015474,2]
[419880327,1775461843265,-700.0,0.00015485,3]
[419880328,1775461843277,-10100.0,0.000155,5]
[419880329,1775461843288,-4000.0,0.00015507,2]
[419880330,1775461843300,-10994.48681168,0.00015511,2]
[419880331,1775461843312,-152.0,0.00015525,27]
[419880332,1775461843323,-18060.03789133,0.00015544,2]
[419880333,1775461843334,-2000.0,0.000156,5]
[419880334,1775461843345,-152.0,0.00015629,28]
[419880335,1775461843356,-152.0,0.00015629,5]
[419880336,1775461843366,-1068.0,0.00015656,2]
[419880337,1775461843377,-1068.0,0.0001568,2]
[419880338,1775461843387,-351.0533649,0.0001568,2]
[419880339,1775461843397,-2811.0,0.0001568,2]
[419880340,1775461843407,-2000.0,0.000157,5]
[419880341,1775461843418,-200.0,0.00015747,2]
[419880342,1775461843428,-1428.38747117,0.00015747,2]
[419880343,1775461843439,-181.08010149,0.00015747,2]
[419880344,1775461843449,-151.23,0.00015753,2]
[419880345,1775461843459,-2000.0,0.000158,5]
[419880346,1775461843470,-500.0,0.00015811,2]
[419880347,1775461843480,-500.0,0.00015811,2]
[419880348,1775461843491,-500.0,0.00015811,2]
[419880349,1775461843503,-500.0,0.00015811,2]
[419880350,1775461843513,-500.0,0.00015811,2]
[419880351,1775461843523,-500.0,0.00015811,2]
[419880352,1775461843533,-500.0,0.00015811,2]
[419880353,1775461843544,-2000.0,0.0001584,2]
[419880354,1775461843555,-2000.0,0.0001584,2]
[419880355,1775461843565,-2000.0,0.0001585,2]
[419880356,1775461843575,-500.0,0.00015872,2]
[419880358,1775461843586,-4000.0,0.00015895,2]
[419880360,1775461843596,-500.0,0.00015899,2]
[419880362,1775461843607,-500.0,0.00015899,2]
[419880365,1775461843617,-5800.0,0.000159,2]
[419880367,1775461843627,-18060.03789133,0.000159,2]
[419880369,1775461843636,-2000.0,0.000159,5]
[419880370,1775461843646,-639.24845899,0.000159,2]
[419880371,1775461843656,-1061.20820272,0.000159,2]
[419880372,1775461843666,-1990.29367805,0.000159,2]
[419880373,1775461843676,-10994.48681168,0.000159,2]
[419880374,1775461843687,-5800.0,0.000159,2]
[419880375,1775461843697,-1348.0,0.000159,5]
[419880376,1775461843707,-1082.0,0.000159,5]
[419880377,1775461843717,-2000.0,0.000159,2]
[419880378,1775461843727,-162.28,0.00015926,2]
[419880379,1775461843736,-162.66,0.00015941,2]
[419880380,1775461843746,-264.11,0.00015947,2]
[419880381,1775461843756,-350.0,0.00015947,2]
[419880382,1775461843766,-350.0,0.00015961,2]
[419880383,1775461843777,-118979.2214244,0.0001597,2]
[419880384,1775461843787,-3392.6027902,0.0001597,2]
[419880385,1775461843796,-851.2051039,0.0001597,2]
[419880386,1775461843806,-22749.9822852,0.0001597,2]
[419880387,1775461843816,-500.0,0.00015973,2]
[419880388,1775461843826,-162.57129974,0.00015973,2]
[419880389,1775461843836,-500.0,0.00015973,2]
[419880390,1775461843845,-390.31346696,0.00015973,2]
[419880391,1775461843855,-500.0,0.00015973,2]
[419880392,1775461843865,-500.0,0.00015973,2]
[419880393,1775461843876,-500.84960318,0.00015973,2]
[419880394,1775461843886,-501.96395055,0.00015973,2]
[419880395,1775461843895,-501.12672973,0.00015973,2]
[419880396,1775461843906,-500.0,0.00015973,2]
[419880397,1775461843915,-231.36088341,0.00015973,2]
[419880398,1775461843925,-501.46029237,0.00015973,2]
[419880399,1775461843935,-500.8742817,0.00015973,2]
[419880400,1775461843945,-500.0,0.00015973,2]
[419880401,1775461843955,-502.00926321,0.00015973,2]
[419880402,1775461843965,-500.0,0.00015973,2]
[419880403,1775461843975,-501.91295738,0.00015973,2]
[419880404,1775461843985,-501.6002768,0.00015973,2]
[419880405,1775461843995,-501.766461,0.00015973,2]
[419880406,1775461844006,-501.68959435,0.00015973,2]
[419880407,1775461844016,-505.85831432,0.00015973,2]
[419880408,1775461844025,-503.10234327,0.00015973,2]
[419880409,1775461844035,-224.78309712,0.00015973,2]
[419880410,1775461844045,-500.0,0.00015973,2]
[419880411,1775461844055,-500.0,0.00015973,2]
[419880412,1775461844065,-429.76417009,0.00015973,2]
[419880413,1775461844075,-270.11406677,0.00015984,2]
[419880414,1775461844085,-518.12503189,0.00015984,2]
[419880415,1775461844095,-186.79062772,0.00015984,2]
[419880416,1775461844104,-904.56140744,0.00015984,2]
[419880417,1775461844114,-150.0,0.00015989,2]
[419880418,1775461844123,-150.0,0.00015989,2]
[419880419,1775461844133,-1517.0,0.00015989,2]
[419880420,1775461844143,-500.0,0.00015989,2]
[419880421,1775461844153,-500.0,0.00015989,2]
[419880422,1775461844164,-500.0,0.00015989,2]
[419880423,1775461844173,-500.0,0.00015989,2]
[419880424,1775461844183,-500.0,0.00015989,2]
[419880425,1775461844193,-500.0,0.00015989,2]
[419880426,1775461844203,-500.0,0.00015989,2]
[419880427,1775461844213,-1158.0,0.00015989,2]
[419880428,1775461844222,-1158.0,0.00015989,2]
[419880429,1775461844232,-1158.0,0.00015989,2]
[419880430,1775461844241,-1158.0,0.00015989,2]
[419880431,1775461844251,-1158.0,0.00015989,2]
[419880432,1775461844261,-1158.0,0.00015989,2]
[419880433,1775461844271,-1158.0,0.00015989,2]
[419880434,1775461844280,-1158.0,0.00015989,2]
[419880435,1775461844290,-1158.0,0.00015989,2]
[419880436,1775461844299,-1158.0,0.00015989,2]
[419880437,1775461844308,-1158.0,0.00015989,2]
[419880438,1775461844318,-1158.0,0.00015989,2]
[419880439,1775461844329,-1158.0,0.00015989,2]
[419880440,1775461844338,-1158.0,0.00015989,2]
[419880441,1775461844347,-1158.0,0.00015989,2]
[419880442,1775461844357,-1158.0,0.00015989,2]
[419880443,1775461844367,-1158.0,0.00015989,2]
[419880444,1775461844376,-1158.0,0.00015989,2]
[419880445,1775461844385,-1158.0,0.00015989,2]
[419880446,1775461844395,-1158.0,0.00015989,2]
[419880447,1775461844404,-1158.0,0.00015989,2]
[419880448,1775461844413,-1158.0,0.00015989,2]
[419880449,1775461844422,-1158.0,0.00015989,2]
[419880450,1775461844431,-1179.89042352,0.00015989,2]
[419880451,1775461844440,-193.60710548,0.0001599,2]
[419880452,1775461844450,-193.60710548,0.0001599,2]
[419880453,1775461844459,-151.0,0.00015997,2]
[419880454,1775461844468,-151.0,0.00015997,2]
[419880455,1775461844478,-151.0,0.00015997,2]
[419880456,1775461844487,-500.0,0.00015997,2]
[419880457,1775461844497,-500.0,0.00015997,2]
[419880458,1775461844506,-500.0,0.00015997,2]
[419880459,1775461844516,-500.0,0.00015997,2]
[419880460,1775461844525,-150.0,0.00015998,2]
[419880461,1775461844535,-158.811697,0.00015998,2]
[419880462,1775461844544,-151.0,0.00015998,2]
[419880463,1775461844553,-792.639709,0.00015998,2]
[419880464,1775461844563,-151.0,0.00015998,2]
[419880465,1775461844572,-1062.057078,0.00015998,2]
[419880466,1775461844582,-792.639709,0.00015998,2]
[419880467,1775461844591,-151.0,0.00015998,2]
[419880468,1775461844601,-1062.057078,0.00015998,2]
[419880469,1775461844610,-792.639709,0.00015998,2]
[419880470,1775461844620,-1062.057078,0.00015998,2]
[419880471,1775461844630,-151.0,0.00015998,2]
[419880472,1775461844639,-151.0,0.00015998,2]
[419880473,1775461844648,-419.420367,0.00015998,2]
[419880474,1775461844658,-151.0,0.00015998,2]
[419880475,1775461844668,-623.666065,0.00015998,2]
[419880476,1775461844677,-792.639709,0.00015998,2]
[419880477,1775461844687,-1062.057078,0.00015998,2]
[419880478,1775461844696,-151.0,0.00015998,2]
[419880479,1775461844706,-151.0,0.00015998,2]
[419880480,1775461844715,-623.666065,0.00015998,2]
[419880481,1775461844724,-419.420367,0.00015998,2]